[Event "Titled Tuesday Blitz May 10 Early 2022"]
[White "Martin Duque, Jesus"]
[Black "Perez Gormaz, Matias"]
[WhiteFideId "2208954"]
[BlackFideId "3406342"]
[WhiteElo "2243"]
[BlackElo "2341"]
[Result "0-1"]
[Round "05"]
[TimeControl "180+1"]
[Date "2022.05.11"]
[WhiteClock "0:00:39"]
[BlackClock "0:00:06"]

1. Nf3 {[%clk 0:02:56]}  d5 {[%clk 0:03:00]} 2. b3 {[%clk 0:02:55]}  Bg4 {[%clk 0:02:57]} 3. e3 {[%clk 0:02:54]}  Nd7 {[%clk 0:02:57]} 4. Bb2 {[%clk 0:02:54]}  Ngf6 {[%clk 0:02:57]} 5. h3 {[%clk 0:02:54]}  Bxf3 {[%clk 0:02:54]} 6. Qxf3 {[%clk 0:02:54]}  e5 {[%clk 0:02:54]} 7. g4 {[%clk 0:02:54]}  c6 {[%clk 0:02:46]} 8. c4 {[%clk 0:02:44]}  dxc4 {[%clk 0:02:44]} 9. Bxc4 {[%clk 0:02:44]}  e4 {[%clk 0:02:29]} 10. Qg2 {[%clk 0:02:40]}  Nc5 {[%clk 0:02:09]} 11. g5 {[%clk 0:02:21]}  Nd5 {[%clk 0:02:05]} 12. a3 {[%clk 0:02:15]}  Nb6 {[%clk 0:02:01]} 13. Be2 {[%clk 0:02:07]}  Nd3+ {[%clk 0:01:56]} 14. Bxd3 {[%clk 0:02:07]}  Qxd3 {[%clk 0:01:57]} 15. Nc3 {[%clk 0:02:07]}  O-O-O {[%clk 0:01:53]} 16. Nxe4 {[%clk 0:02:05]}  Qxb3 {[%clk 0:01:47]} 17. Bc3 {[%clk 0:02:01]}  Qd5 {[%clk 0:01:35]} 18. O-O {[%clk 0:02:00]}  h6 {[%clk 0:01:35]} 19. g6 {[%clk 0:01:54]}  Re8 {[%clk 0:01:02]} 20. f3 {[%clk 0:01:45]}  f5 {[%clk 0:01:00]} 21. Ng3 {[%clk 0:01:43]}  Bd6 {[%clk 0:00:44]} 22. f4 {[%clk 0:01:41]}  Re6 {[%clk 0:00:33]} 23. Qxd5 {[%clk 0:01:33]}  Nxd5 {[%clk 0:00:34]} 24. Nxf5 {[%clk 0:01:32]}  Rxg6+ {[%clk 0:00:34]} 25. Kf2 {[%clk 0:01:31]}  Nxc3 {[%clk 0:00:33]} 26. dxc3 {[%clk 0:01:31]}  Bc5 {[%clk 0:00:27]} 27. Kf3 {[%clk 0:01:27]}  Rd8 {[%clk 0:00:22]} 28. a4 {[%clk 0:01:24]}  Rd3 {[%clk 0:00:20]} 29. c4 {[%clk 0:01:17]}  Rf6 {[%clk 0:00:15]} 30. Ke4 {[%clk 0:01:17]}  Rc3 {[%clk 0:00:14]} 31. Rac1 {[%clk 0:01:07]}  Re6+ {[%clk 0:00:14]} 32. Kf3 {[%clk 0:01:07]}  Ra3 {[%clk 0:00:15]} 33. Rfe1 {[%clk 0:01:03]}  g6 {[%clk 0:00:14]} 34. Nxh6 {[%clk 0:01:03]}  Bxe3 {[%clk 0:00:13]} 35. Kg4 {[%clk 0:01:01]}  Re4 {[%clk 0:00:10]} 36. Kg5 {[%clk 0:00:52]}  Bxf4+ {[%clk 0:00:09]} 37. Kxg6 {[%clk 0:00:53]}  Bxc1 {[%clk 0:00:06]} 38. Rxe4 {[%clk 0:00:52]}  Bxh6 {[%clk 0:00:07]} 39. Kxh6 {[%clk 0:00:52]}  Rxh3+ {[%clk 0:00:08]} 40. Kg7 {[%clk 0:00:52]}  Ra3 {[%clk 0:00:09]} 41. Kf7 {[%clk 0:00:47]}  Rxa4 {[%clk 0:00:05]} 42. Ke7 {[%clk 0:00:48]}  Ra1 {[%clk 0:00:04]} 43. c5 {[%clk 0:00:43]}  Rd1 {[%clk 0:00:04]} 44. Ra4 {[%clk 0:00:42]}  a6 {[%clk 0:00:04]} 45. Ke6 {[%clk 0:00:41]}  Kc7 {[%clk 0:00:04]} 46. Ra5 {[%clk 0:00:41]}  Rd5 {[%clk 0:00:04]} 47. Kf6 {[%clk 0:00:41]}  Rd7 {[%clk 0:00:04]} 48. Ke6 {[%clk 0:00:41]}  Rd5 {[%clk 0:00:05]} 49. Kf6 {[%clk 0:00:41]}  Rd1 {[%clk 0:00:06]} 50. Ke6 {[%clk 0:00:41]}  Rb1 {[%clk 0:00:07]} 51. Kf6 {[%clk 0:00:41]}  Rb5 {[%clk 0:00:06]} 52. Rxa6 {[%clk 0:00:39]}  bxa6 {[%clk 0:00:06]} 0-1


[Site "https://www.chess.com"]

[Event "Titled Tuesday Blitz May 10 Early 2022"]
[White "Matveeva, Olga"]
[Black "Risteski, Emil"]
[WhiteFideId "24107018"]
[BlackFideId "15005267"]
[WhiteElo "2052"]
[BlackElo "2070"]
[Result "0-1"]
[Round "05"]
[TimeControl "180+1"]
[Date "2022.05.11"]
[WhiteClock "0:00:11"]
[BlackClock "0:01:25"]

1. d4 {[%clk 0:03:00]}  d6 {[%clk 0:02:58]} 2. Nf3 {[%clk 0:03:00]}  g6 {[%clk 0:02:57]} 3. g3 {[%clk 0:02:59]}  Bg7 {[%clk 0:02:57]} 4. c4 {[%clk 0:02:58]}  Nd7 {[%clk 0:02:55]} 5. Bg2 {[%clk 0:02:58]}  Nh6 {[%clk 0:02:54]} 6. h4 {[%clk 0:02:53]}  e5 {[%clk 0:02:44]} 7. Nc3 {[%clk 0:02:45]}  Nf5 {[%clk 0:02:42]} 8. dxe5 {[%clk 0:02:21]}  dxe5 {[%clk 0:02:42]} 9. h5 {[%clk 0:02:18]}  O-O {[%clk 0:02:41]} 10. hxg6 {[%clk 0:02:12]}  hxg6 {[%clk 0:02:38]} 11. Bg5 {[%clk 0:02:10]}  f6 {[%clk 0:02:22]} 12. Qd5+ {[%clk 0:02:03]}  Rf7 {[%clk 0:02:22]} 13. Bd2 {[%clk 0:01:21]}  c6 {[%clk 0:02:18]} 14. Qd3 {[%clk 0:01:10]}  Qe7 {[%clk 0:02:17]} 15. g4 {[%clk 0:01:01]}  Nc5 {[%clk 0:02:02]} 16. Qc2 {[%clk 0:01:01]}  Nd4 {[%clk 0:02:02]} 17. Qxg6 {[%clk 0:00:56]}  f5 {[%clk 0:01:50]} 18. Ng5 {[%clk 0:00:35]}  Rf6 {[%clk 0:01:50]} 19. Qh7+ {[%clk 0:00:34]}  Kf8 {[%clk 0:01:50]} 20. O-O-O {[%clk 0:00:31]}  fxg4 {[%clk 0:01:44]} 21. Nce4 {[%clk 0:00:29]}  Bf5 {[%clk 0:01:39]} 22. Qh4 {[%clk 0:00:17]}  Rg6 {[%clk 0:01:37]} 23. Nh7+ {[%clk 0:00:16]}  Ke8 {[%clk 0:01:34]} 24. Qxe7+ {[%clk 0:00:16]}  Kxe7 {[%clk 0:01:33]} 25. Nc3 {[%clk 0:00:11]}  Ncb3+ {[%clk 0:01:25]} 0-1


[Site "https://www.chess.com"]

[Event "Titled Tuesday Blitz May 10 Early 2022"]
[White "Melian, Juan Sebastian"]
[Black "Tanenbaum, Zachary"]
[WhiteFideId "3706575"]
[BlackFideId "2060850"]
[WhiteElo "1851"]
[BlackElo "2168"]
[Result "1-0"]
[Round "05"]
[TimeControl "180+1"]
[Date "2022.05.11"]
[WhiteClock "0:00:13"]
[BlackClock "0:00:01"]

1. c4 {[%clk 0:03:00]}  e5 {[%clk 0:02:59]} 2. Nc3 {[%clk 0:03:00]}  Nf6 {[%clk 0:03:00]} 3. g3 {[%clk 0:03:00]}  Nc6 {[%clk 0:03:00]} 4. Bg2 {[%clk 0:03:01]}  Bc5 {[%clk 0:03:00]} 5. d3 {[%clk 0:03:01]}  d6 {[%clk 0:03:00]} 6. e3 {[%clk 0:03:01]}  O-O {[%clk 0:03:00]} 7. Nge2 {[%clk 0:03:02]}  Re8 {[%clk 0:02:59]} 8. O-O {[%clk 0:03:02]}  Ne7 {[%clk 0:02:58]} 9. a3 {[%clk 0:03:00]}  a6 {[%clk 0:02:58]} 10. d4 {[%clk 0:03:00]}  Ba7 {[%clk 0:02:56]} 11. b4 {[%clk 0:03:00]}  Ng6 {[%clk 0:02:55]} 12. Bb2 {[%clk 0:02:59]}  c6 {[%clk 0:02:54]} 13. dxe5 {[%clk 0:02:57]}  Nxe5 {[%clk 0:02:49]} 14. Qb3 {[%clk 0:02:44]}  Be6 {[%clk 0:02:45]} 15. Rfd1 {[%clk 0:02:43]}  Nxc4 {[%clk 0:02:32]} 16. Nf4 {[%clk 0:02:35]}  Nxe3 {[%clk 0:01:36]} 17. Nxe6 {[%clk 0:02:35]}  Rxe6 {[%clk 0:01:37]} 18. fxe3 {[%clk 0:02:35]}  Rxe3 {[%clk 0:01:33]} 19. Kh1 {[%clk 0:02:32]}  Ng4 {[%clk 0:01:32]} 20. Rf1 {[%clk 0:02:31]}  d5 {[%clk 0:01:25]} 21. Qc2 {[%clk 0:02:06]}  Qd6 {[%clk 0:00:56]} 22. Rf4 {[%clk 0:01:50]}  Rxg3 {[%clk 0:00:37]} 23. Qf5 {[%clk 0:01:17]}  Rxg2 {[%clk 0:00:26]} 24. Qxf7+ {[%clk 0:01:17]}  Kh8 {[%clk 0:00:26]} 25. Kxg2 {[%clk 0:01:10]}  Ne5 {[%clk 0:00:13]} 26. Qxb7 {[%clk 0:00:45]}  Rb8 {[%clk 0:00:06]} 27. Qxa7 {[%clk 0:00:39]}  Ng6 {[%clk 0:00:06]} 28. Rf2 {[%clk 0:00:19]}  Nf4+ {[%clk 0:00:05]} 29. Kh1 {[%clk 0:00:15]}  Rf8 {[%clk 0:00:05]} 30. Raf1 {[%clk 0:00:14]}  h6 {[%clk 0:00:05]} 31. Ne2 {[%clk 0:00:13]}  Nxe2 {[%clk 0:00:01]} 32. Qxg7# {[%clk 0:00:13]} 1-0


[Site "https://www.chess.com"]

[Event "Titled Tuesday Blitz May 10 Early 2022"]
[White "Melikyan, Gnel"]
[Black "Hansch, Karsten"]
[WhiteFideId "54109990"]
[BlackFideId "24692239"]
[WhiteElo "1772"]
[BlackElo "2358"]
[Result "0-1"]
[Round "05"]
[TimeControl "180+1"]
[Date "2022.05.11"]
[WhiteClock "0:00:32"]
[BlackClock "0:00:53"]

1. e4 {[%clk 0:02:59]}  c5 {[%clk 0:02:58]} 2. Nf3 {[%clk 0:02:59]}  d6 {[%clk 0:02:57]} 3. d4 {[%clk 0:02:59]}  cxd4 {[%clk 0:02:58]} 4. Nxd4 {[%clk 0:03:00]}  Nf6 {[%clk 0:02:59]} 5. Nc3 {[%clk 0:03:00]}  a6 {[%clk 0:02:59]} 6. Be3 {[%clk 0:03:00]}  e5 {[%clk 0:02:59]} 7. Nf3 {[%clk 0:02:59]}  Be7 {[%clk 0:02:59]} 8. Bc4 {[%clk 0:02:59]}  Qc7 {[%clk 0:02:57]} 9. Bb3 {[%clk 0:02:56]}  O-O {[%clk 0:02:55]} 10. O-O {[%clk 0:02:56]}  Be6 {[%clk 0:02:55]} 11. Bg5 {[%clk 0:02:56]}  Nbd7 {[%clk 0:02:54]} 12. Be3 {[%clk 0:02:52]}  b5 {[%clk 0:02:54]} 13. Bxe6 {[%clk 0:02:51]}  fxe6 {[%clk 0:02:50]} 14. Ng5 {[%clk 0:02:51]}  Qc4 {[%clk 0:02:51]} 15. Qd3 {[%clk 0:02:45]}  h6 {[%clk 0:02:31]} 16. Qxc4 {[%clk 0:02:44]}  bxc4 {[%clk 0:02:31]} 17. Nxe6 {[%clk 0:02:44]}  Rfc8 {[%clk 0:02:29]} 18. f4 {[%clk 0:02:36]}  Rab8 {[%clk 0:02:27]} 19. Rab1 {[%clk 0:02:32]}  Kf7 {[%clk 0:02:24]} 20. f5 {[%clk 0:02:25]}  Rb7 {[%clk 0:02:07]} 21. h3 {[%clk 0:02:03]}  Rcb8 {[%clk 0:02:05]} 22. b3 {[%clk 0:02:03]}  Rc8 {[%clk 0:02:02]} 23. Rfc1 {[%clk 0:02:03]}  Nb8 {[%clk 0:01:40]} 24. g4 {[%clk 0:01:57]}  Nc6 {[%clk 0:01:38]} 25. bxc4 {[%clk 0:01:51]}  Rxb1 {[%clk 0:01:37]} 26. Rxb1 {[%clk 0:01:52]}  Nd4 {[%clk 0:01:37]} 27. c5 {[%clk 0:01:38]}  Nxc2 {[%clk 0:01:31]} 28. Bf2 {[%clk 0:01:30]}  dxc5 {[%clk 0:01:30]} 29. Rb7 {[%clk 0:01:29]}  Nd4 {[%clk 0:01:28]} 30. Nd5 {[%clk 0:01:28]}  Nxd5 {[%clk 0:01:27]} 31. exd5 {[%clk 0:01:26]}  Nxe6 {[%clk 0:01:24]} 32. dxe6+ {[%clk 0:00:59]}  Ke8 {[%clk 0:01:19]} 33. Kf1 {[%clk 0:00:51]}  c4 {[%clk 0:01:15]} 34. Rb2 {[%clk 0:00:46]}  c3 {[%clk 0:01:14]} 35. Rc2 {[%clk 0:00:46]}  Bf6 {[%clk 0:01:11]} 36. Ke2 {[%clk 0:00:45]}  e4 {[%clk 0:01:10]} 37. Ke3 {[%clk 0:00:40]}  Rc4 {[%clk 0:01:07]} 38. Be1 {[%clk 0:00:40]}  Ke7 {[%clk 0:01:03]} 39. Rc1 {[%clk 0:00:32]}  Bg5+ {[%clk 0:00:53]} 0-1


[Site "https://www.chess.com"]

[Event "Titled Tuesday Blitz May 10 Early 2022"]
[White "Mikhnenko, Alexander"]
[Black "Shuvalov, Evgenij"]
[WhiteFideId "34143014"]
[BlackFideId "4187237"]
[WhiteElo "2117"]
[BlackElo "2053"]
[Result "0-1"]
[Round "05"]
[TimeControl "180+1"]
[Date "2022.05.11"]
[WhiteClock "0:01:26"]
[BlackClock "0:01:49"]

1. e4 {[%clk 0:02:37]}  e6 {[%clk 0:02:57]} 2. d4 {[%clk 0:02:37]}  d5 {[%clk 0:02:57]} 3. Nc3 {[%clk 0:02:37]}  Bb4 {[%clk 0:02:56]} 4. e5 {[%clk 0:02:36]}  c5 {[%clk 0:02:56]} 5. a3 {[%clk 0:02:36]}  Bxc3+ {[%clk 0:02:56]} 6. bxc3 {[%clk 0:02:35]}  Ne7 {[%clk 0:02:57]} 7. Qg4 {[%clk 0:02:32]}  cxd4 {[%clk 0:02:56]} 8. Qxg7 {[%clk 0:02:31]}  Rg8 {[%clk 0:02:56]} 9. Qxh7 {[%clk 0:02:31]}  Qc7 {[%clk 0:02:57]} 10. Ne2 {[%clk 0:02:23]}  Nbc6 {[%clk 0:02:56]} 11. cxd4 {[%clk 0:02:17]}  Nxd4 {[%clk 0:02:55]} 12. Qd3 {[%clk 0:02:14]}  Nxc2+ {[%clk 0:02:54]} 13. Kd1 {[%clk 0:02:05]}  Nxa1 {[%clk 0:02:53]} 14. Bb2 {[%clk 0:02:03]}  Bd7 {[%clk 0:02:41]} 15. Bxa1 {[%clk 0:02:02]}  Ba4+ {[%clk 0:02:40]} 16. Kd2 {[%clk 0:01:58]}  Rc8 {[%clk 0:02:34]} 17. Bc3 {[%clk 0:01:43]}  Nc6 {[%clk 0:02:22]} 18. f4 {[%clk 0:01:37]}  d4 {[%clk 0:02:12]} 19. Nxd4 {[%clk 0:01:31]}  Nxd4 {[%clk 0:02:04]} 20. Bxd4 {[%clk 0:01:29]}  Qc1+ {[%clk 0:02:02]} 21. Ke2 {[%clk 0:01:28]}  Rc2+ {[%clk 0:01:58]} 22. Qxc2 {[%clk 0:01:26]}  Qxc2+ {[%clk 0:01:57]} 23. Ke3 {[%clk 0:01:26]}  Bc6 {[%clk 0:01:49]} 0-1


[Site "https://www.chess.com"]

[Event "Titled Tuesday Blitz May 10 Early 2022"]
[White "Miszler, Levente"]
[Black "Valle Maytin, Luis Enrique"]
[WhiteFideId "763276"]
[BlackFideId "3503666"]
[WhiteElo "1966"]
[BlackElo "2279"]
[Result "1-0"]
[Round "05"]
[TimeControl "180+1"]
[Date "2022.05.11"]
[WhiteClock "0:01:16"]
[BlackClock "0:01:38"]

1. Nf3 {[%clk 0:03:00]}  Nf6 {[%clk 0:02:58]} 2. c4 {[%clk 0:02:58]}  c5 {[%clk 0:02:55]} 3. g3 {[%clk 0:02:59]}  g6 {[%clk 0:02:49]} 4. Bg2 {[%clk 0:02:58]}  Bg7 {[%clk 0:02:50]} 5. O-O {[%clk 0:02:58]}  O-O {[%clk 0:02:50]} 6. Nc3 {[%clk 0:02:58]}  Nc6 {[%clk 0:02:49]} 7. d3 {[%clk 0:02:58]}  d6 {[%clk 0:02:49]} 8. a3 {[%clk 0:02:58]}  Qd7 {[%clk 0:02:45]} 9. Rb1 {[%clk 0:02:59]}  b6 {[%clk 0:02:45]} 10. b4 {[%clk 0:02:55]}  Bb7 {[%clk 0:02:44]} 11. Qc2 {[%clk 0:02:54]}  e6 {[%clk 0:02:44]} 12. e3 {[%clk 0:02:43]}  Rac8 {[%clk 0:02:43]} 13. b5 {[%clk 0:02:42]}  Ne7 {[%clk 0:02:42]} 14. Bb2 {[%clk 0:02:41]}  d5 {[%clk 0:02:40]} 15. Nd2 {[%clk 0:02:39]}  Qd6 {[%clk 0:02:29]} 16. Rfd1 {[%clk 0:02:29]}  Nd7 {[%clk 0:02:28]} 17. e4 {[%clk 0:02:23]}  d4 {[%clk 0:02:27]} 18. Ne2 {[%clk 0:02:23]}  e5 {[%clk 0:02:24]} 19. Rf1 {[%clk 0:02:17]}  Bh6 {[%clk 0:02:24]} 20. f4 {[%clk 0:02:16]}  f5 {[%clk 0:02:23]} 21. Rbe1 {[%clk 0:02:10]}  Nf6 {[%clk 0:02:20]} 22. fxe5 {[%clk 0:02:08]}  Qxe5 {[%clk 0:02:20]} 23. Nf4 {[%clk 0:02:05]}  Qd6 {[%clk 0:02:11]} 24. e5 {[%clk 0:02:01]}  Bxg2 {[%clk 0:02:06]} 25. exd6 {[%clk 0:02:00]}  Bxf1 {[%clk 0:02:06]} 26. dxe7 {[%clk 0:01:58]}  Rfe8 {[%clk 0:02:04]} 27. Kxf1 {[%clk 0:01:53]}  Ng4 {[%clk 0:02:05]} 28. Nf3 {[%clk 0:01:46]}  Rc7 {[%clk 0:02:01]} 29. Nd5 {[%clk 0:01:37]}  Rd7 {[%clk 0:01:53]} 30. h3 {[%clk 0:01:36]}  Ne3+ {[%clk 0:01:48]} 31. Rxe3 {[%clk 0:01:35]}  Bxe3 {[%clk 0:01:49]} 32. Nf6+ {[%clk 0:01:32]}  Kf7 {[%clk 0:01:47]} 33. Nxd7 {[%clk 0:01:32]}  Rxe7 {[%clk 0:01:47]} 34. Nde5+ {[%clk 0:01:31]}  Kf6 {[%clk 0:01:48]} 35. Bc1 {[%clk 0:01:31]}  g5 {[%clk 0:01:43]} 36. Bxe3 {[%clk 0:01:30]}  dxe3 {[%clk 0:01:44]} 37. Ke2 {[%clk 0:01:23]}  h5 {[%clk 0:01:43]} 38. Qc3 {[%clk 0:01:23]}  Ke6 {[%clk 0:01:39]} 39. Nxg5+ {[%clk 0:01:19]}  Kd6 {[%clk 0:01:40]} 40. Nef7+ {[%clk 0:01:19]}  Kc7 {[%clk 0:01:40]} 41. Qf6 {[%clk 0:01:19]}  Rd7 {[%clk 0:01:39]} 42. Qc6+ {[%clk 0:01:19]}  Kb8 {[%clk 0:01:39]} 43. Qxd7 {[%clk 0:01:19]}  f4 {[%clk 0:01:39]} 44. Nd6 {[%clk 0:01:17]}  f3+ {[%clk 0:01:39]} 45. Kxe3 {[%clk 0:01:16]}  f2 {[%clk 0:01:38]} 1-0


[Site "https://www.chess.com"]

[Event "Titled Tuesday Blitz May 10 Early 2022"]
[White "Morefield, Jason"]
[Black "Omariev, Maksim"]
[WhiteFideId "30920825"]
[BlackFideId "4193423"]
[WhiteElo "2171"]
[BlackElo "2522"]
[Result "1-0"]
[Round "05"]
[TimeControl "180+1"]
[Date "2022.05.11"]
[WhiteClock "0:00:11"]
[BlackClock "0:00:03"]

1. d4 {[%clk 0:03:00]}  Nf6 {[%clk 0:02:58]} 2. c4 {[%clk 0:02:59]}  c5 {[%clk 0:02:58]} 3. d5 {[%clk 0:02:59]}  e6 {[%clk 0:02:58]} 4. Nc3 {[%clk 0:02:58]}  exd5 {[%clk 0:02:58]} 5. cxd5 {[%clk 0:02:59]}  d6 {[%clk 0:02:59]} 6. Nf3 {[%clk 0:03:00]}  g6 {[%clk 0:02:59]} 7. Nd2 {[%clk 0:03:00]}  Bg7 {[%clk 0:03:00]} 8. e4 {[%clk 0:03:01]}  O-O {[%clk 0:03:00]} 9. Be2 {[%clk 0:03:01]}  Re8 {[%clk 0:03:01]} 10. O-O {[%clk 0:03:01]}  a6 {[%clk 0:03:00]} 11. a4 {[%clk 0:03:02]}  Nbd7 {[%clk 0:02:46]} 12. Ra3 {[%clk 0:02:58]}  Ne5 {[%clk 0:02:23]} 13. f4 {[%clk 0:02:57]}  Neg4 {[%clk 0:02:15]} 14. Nc4 {[%clk 0:02:57]}  h5 {[%clk 0:02:09]} 15. h3 {[%clk 0:01:56]}  Nh6 {[%clk 0:02:02]} 16. e5 {[%clk 0:01:51]}  dxe5 {[%clk 0:01:53]} 17. fxe5 {[%clk 0:01:52]}  Nd7 {[%clk 0:01:36]} 18. Bf4 {[%clk 0:01:27]}  Nf5 {[%clk 0:01:18]} 19. Bxh5 {[%clk 0:01:06]}  gxh5 {[%clk 0:01:13]} 20. Qxh5 {[%clk 0:01:07]}  Nxe5 {[%clk 0:00:35]} 21. Bxe5 {[%clk 0:01:04]}  Bxe5 {[%clk 0:00:27]} 22. Rxf5 {[%clk 0:00:56]}  Bxf5 {[%clk 0:00:25]} 23. Qxf5 {[%clk 0:00:57]}  Bd4+ {[%clk 0:00:23]} 24. Kh2 {[%clk 0:00:47]}  Qf6 {[%clk 0:00:16]} 25. Qxf6 {[%clk 0:00:32]}  Bxf6 {[%clk 0:00:17]} 26. Rb3 {[%clk 0:00:32]}  Re7 {[%clk 0:00:16]} 27. d6 {[%clk 0:00:29]}  Re1 {[%clk 0:00:11]} 28. Rxb7 {[%clk 0:00:25]}  Rd8 {[%clk 0:00:09]} 29. Kg3 {[%clk 0:00:18]}  Rc1 {[%clk 0:00:05]} 30. Nd5 {[%clk 0:00:13]}  Bd4 {[%clk 0:00:03]} 31. b3 {[%clk 0:00:09]}  Rd1 {[%clk 0:00:03]} 32. Ne7+ {[%clk 0:00:08]}  Kf8 {[%clk 0:00:03]} 33. Nc6 {[%clk 0:00:09]}  Re8 {[%clk 0:00:01]} 34. d7 {[%clk 0:00:09]}  Bg7 {[%clk 0:00:01]} 35. dxe8=Q+ {[%clk 0:00:09]}  Kxe8 {[%clk 0:00:02]} 36. Re7+ {[%clk 0:00:10]}  Kf8 {[%clk 0:00:02]} 37. Ra7 {[%clk 0:00:10]}  Bc3 {[%clk 0:00:02]} 38. Rxa6 {[%clk 0:00:09]}  Rb1 {[%clk 0:00:03]} 39. Ra8+ {[%clk 0:00:10]}  Kg7 {[%clk 0:00:03]} 40. Rb8 {[%clk 0:00:10]}  Bb4 {[%clk 0:00:03]} 41. Nxb4 {[%clk 0:00:10]}  Rxb3+ {[%clk 0:00:03]} 42. Kf4 {[%clk 0:00:09]}  cxb4 {[%clk 0:00:04]} 43. a5 {[%clk 0:00:09]}  Rb1 {[%clk 0:00:03]} 44. a6 {[%clk 0:00:08]}  Ra1 {[%clk 0:00:02]} 45. Rxb4 {[%clk 0:00:09]}  Rxa6 {[%clk 0:00:02]} 46. Ne3 {[%clk 0:00:09]}  Rg6 {[%clk 0:00:02]} 47. g4 {[%clk 0:00:09]}  Rh6 {[%clk 0:00:02]} 48. Nf5+ {[%clk 0:00:09]}  Kg6 {[%clk 0:00:02]} 49. Nxh6 {[%clk 0:00:10]}  f6 {[%clk 0:00:02]} 50. Nf5 {[%clk 0:00:10]}  Kh7 {[%clk 0:00:02]} 51. Rb7+ {[%clk 0:00:11]}  Kg6 {[%clk 0:00:03]} 52. Rg7# {[%clk 0:00:11]} 1-0


[Site "https://www.chess.com"]

[Event "Titled Tuesday Blitz May 10 Early 2022"]
[White "Moussard, Jules"]
[Black "Khubukshanov, Erdem"]
[WhiteFideId "642908"]
[BlackFideId "54114527"]
[WhiteElo "2589"]
[BlackElo "2306"]
[Result "1-0"]
[Round "05"]
[TimeControl "180+1"]
[Date "2022.05.10"]
[WhiteClock "0:01:22"]
[BlackClock "0:00:02"]

1. Nf3 {[%clk 0:03:00]}  d5 {[%clk 0:02:59]} 2. g3 {[%clk 0:03:00]}  Bg4 {[%clk 0:02:58]} 3. Bg2 {[%clk 0:03:00]}  Nd7 {[%clk 0:02:55]} 4. d4 {[%clk 0:03:00]}  Ngf6 {[%clk 0:02:55]} 5. O-O {[%clk 0:02:59]}  e6 {[%clk 0:02:53]} 6. Nbd2 {[%clk 0:02:52]}  Be7 {[%clk 0:02:52]} 7. c4 {[%clk 0:02:50]}  c6 {[%clk 0:02:47]} 8. b3 {[%clk 0:02:46]}  O-O {[%clk 0:02:45]} 9. Bb2 {[%clk 0:02:46]}  a5 {[%clk 0:02:43]} 10. Re1 {[%clk 0:02:43]}  a4 {[%clk 0:02:40]} 11. e4 {[%clk 0:02:28]}  Bb4 {[%clk 0:02:31]} 12. exd5 {[%clk 0:02:14]}  cxd5 {[%clk 0:02:26]} 13. Re3 {[%clk 0:02:10]}  axb3 {[%clk 0:00:59]} 14. Rxb3 {[%clk 0:01:52]}  Qe7 {[%clk 0:00:34]} 15. c5 {[%clk 0:01:48]}  Bxd2 {[%clk 0:00:32]} 16. Qxd2 {[%clk 0:01:48]}  Ne4 {[%clk 0:00:31]} 17. Qf4 {[%clk 0:01:42]}  Bxf3 {[%clk 0:00:15]} 18. Bxf3 {[%clk 0:01:43]}  Ndf6 {[%clk 0:00:16]} 19. a4 {[%clk 0:01:41]}  Qd7 {[%clk 0:00:11]} 20. a5 {[%clk 0:01:37]}  Ra7 {[%clk 0:00:11]} 21. Be2 {[%clk 0:01:34]}  Ne8 {[%clk 0:00:06]} 22. f3 {[%clk 0:01:25]}  N4f6 {[%clk 0:00:06]} 23. Qb8 {[%clk 0:01:25]}  Ra6 {[%clk 0:00:02]} 24. Qxb7 {[%clk 0:01:22]}  Nc7 {[%clk 0:00:02]} 25. Bxa6 {[%clk 0:01:22]} 1-0


[Site "https://www.chess.com"]

[Event "Titled Tuesday Blitz May 10 Early 2022"]
[White "Muradov, Soltan"]
[Black "Lamaze, Simon"]
[WhiteFideId "14002108"]
[BlackFideId "36069264"]
[WhiteElo "1854"]
[BlackElo "1999"]
[Result "0-1"]
[Round "05"]
[TimeControl "180+1"]
[Date "2022.05.11"]
[WhiteClock "0:00:12"]
[BlackClock "0:01:22"]

1. d4 {[%clk 0:02:15]}  Nf6 {[%clk 0:02:56]} 2. Nf3 {[%clk 0:02:15]}  e6 {[%clk 0:02:56]} 3. Bf4 {[%clk 0:02:14]}  d5 {[%clk 0:02:55]} 4. Nbd2 {[%clk 0:02:14]}  Bd6 {[%clk 0:02:55]} 5. Bg3 {[%clk 0:02:13]}  O-O {[%clk 0:02:53]} 6. e3 {[%clk 0:02:13]}  c5 {[%clk 0:02:49]} 7. c3 {[%clk 0:02:13]}  Qc7 {[%clk 0:02:49]} 8. Bxd6 {[%clk 0:02:12]}  Qxd6 {[%clk 0:02:49]} 9. Ne5 {[%clk 0:02:12]}  Nfd7 {[%clk 0:02:44]} 10. f4 {[%clk 0:02:11]}  f6 {[%clk 0:02:44]} 11. Nxd7 {[%clk 0:02:00]}  Nxd7 {[%clk 0:02:45]} 12. Bd3 {[%clk 0:01:49]}  e5 {[%clk 0:02:45]} 13. O-O {[%clk 0:01:50]}  e4 {[%clk 0:02:44]} 14. Be2 {[%clk 0:01:50]}  Nb6 {[%clk 0:02:37]} 15. dxc5 {[%clk 0:01:32]}  Qxc5 {[%clk 0:02:34]} 16. Kh1 {[%clk 0:01:24]}  Qxe3 {[%clk 0:02:33]} 17. Nb3 {[%clk 0:01:23]}  Bd7 {[%clk 0:02:19]} 18. Nd4 {[%clk 0:01:18]}  g5 {[%clk 0:02:15]} 19. f5 {[%clk 0:01:10]}  Kg7 {[%clk 0:02:05]} 20. Qb3 {[%clk 0:00:33]}  g4 {[%clk 0:01:33]} 21. Bxg4 {[%clk 0:00:28]}  Qg5 {[%clk 0:01:33]} 22. Be2 {[%clk 0:00:22]}  Rae8 {[%clk 0:01:31]} 23. Bb5 {[%clk 0:00:21]}  Rf7 {[%clk 0:01:24]} 24. Bxd7 {[%clk 0:00:21]}  Rxd7 {[%clk 0:01:25]} 25. Ne6+ {[%clk 0:00:21]}  Rxe6 {[%clk 0:01:25]} 26. fxe6 {[%clk 0:00:22]}  Re7 {[%clk 0:01:26]} 27. a4 {[%clk 0:00:17]}  Nc4 {[%clk 0:01:25]} 28. Rae1 {[%clk 0:00:15]}  Nd2 {[%clk 0:01:24]} 29. Qb4 {[%clk 0:00:14]}  Rxe6 {[%clk 0:01:22]} 30. Qxb7+ {[%clk 0:00:14]}  Kg6 {[%clk 0:01:23]} 31. Qxd5 {[%clk 0:00:12]}  Qxd5 {[%clk 0:01:22]} 0-1


[Site "https://www.chess.com"]